[Event "Catalan Youth Championship 2024"]
[Site "Cambrils"]
[Date "2024.03.25"]
[Round "5.9"]
[White "Uber Gracia, Hugo"]
[Black "Prada Villagrasa, Pau Manel"]
[Result "0-1"]
[ECO "A17"]
[WhiteElo "2237"]
[BlackElo "2103"]
[Annotator "RC"]
[PlyCount "98"]
[EventDate "2024.03.13"]
[EventType "swiss"]
[EventCountry "ESP"]
[SourceTitle "playchess.com"]
[Source "ChessBase"]
[SourceQuality "1"]
[TimeControl "5400+30"]

1. c4 {[%emt 1:31:00]} e6 {[%emt 1:31:00]} 2. Nf3 {[%emt 0:00:30]} Nf6 {[%emt 0:00:30]} 3. Nc3 {[%emt 0:00:30]} d5 {[%emt 0:00:30]} 4. e3 {[%emt 0:00:30]} b6 {[%emt 0:00:30]} 5. Be2 {[%emt 0:00:30]} Bb7 {[%emt 0:00:30]} 6. b3 {[%emt 0:00:30]} Bd6 {[%emt 0:00:30]} 7. Bb2 {[%emt 0:00:30]} a6 {[%emt 0:00:30]} 8. Qc2 {[%emt 0:00:30]} Nbd7 {[%emt 0:00:30]} 9. d4 {[%emt 0:00:30]} O-O {[%emt 0:00:30]} 10. Bd3 {[%emt 0:00:30]} Re8 {[%emt 0:00:30]} 11. e4 {[%emt 0:00:30]} dxe4 {[%emt 0:00:30]} 12. Nxe4 {[%emt 0:00:30]} Nxe4 {[%emt 0:00:30]} 13. Bxe4 {[%emt 0:00:30]} Bxe4 {[%emt 0:00:30]} 14. Qxe4 {[%emt 0:00:30]} Bb4+ {[%emt 0:00:30]} 15. Ke2 {[%emt 0:00:30]} Nf6 {[%emt 0:00:30]} 16. Qe3 {[%emt 0:00:30]} Bd6 {[%emt 0:00:30]} 17. Rhd1 {[%emt 0:00:30]} Qe7 {[%emt 0:00:30]} 18. h3 {[%emt 0:00:30]} c5 {[%emt 0:00:30]} 19. Kf1 {[%emt 0:00:30]} Rad8 {[%emt 0:00:30]} 20. Rd2 {[%emt 0:00:30]} Qc7 {[%emt 0:00:30]} 21. Ne5 {[%emt 0:00:30]} Bxe5 {[%emt 0:00:30]} 22. dxe5 {[%emt 0:00:30]} Rxd2 {[%emt 0:00:30]} 23. Qxd2 Nd7 {[%emt 0:00:30]} 24. Rd1 {[%emt 0:01:00]} Nb8 {[%emt 0:00:30]} 25. Qd6 {[%emt 0:00:30]} Qb7 {[%emt 0:00:30]} 26. f3 {[%emt 0:00:30]} h6 {[%emt 0:00:30]} 27. Bc3 {[%emt 0:00:30]} a5 {[%emt 0:00:30]} 28. Ke2 {[%emt 0:00:30]} Na6 {[%emt 0:00:30]} 29. Qd7 {[%emt 0:00:30]} Rb8 {[%emt 0:00:30]} 30. a3 {[%emt 0:00:30]} g5 {[%emt 0:00:30]} 31. Qd2 {[%emt 0:00:30]} Kg7 {[%emt 0:00:30]} 32. Qe1 {[%emt 0:00:30]} b5 {[%emt 0:00:30]} 33. Bxa5 {[%emt 0:00:30]} bxc4 {[%emt 0:00:30]} 34. bxc4 {[%emt 0:00:30]} Qb2+ {[%emt 0:00:30]} 35. Kf1 {[%emt 0:00:30]} Qxa3 {[%emt 0:00:30]} 36. Bd8 {[%emt 0:00:30]} Nb4 {[%emt 0:00:30]} 37. Bf6+ {[%emt 0:00:30]} Kg8 {[%emt 0:00:30]} 38. h4 {[%emt 0:00:30]} Nc2 {[%emt 0:00:30]} 39. Qg3 {[%emt 0:00:30]} Ne3+ {[%emt 0:00:30]} 40. Kg1 {[%emt 0:00:30]} Nxd1 {[%emt 0:00:30]} 41. hxg5 {[%emt 0:00:30]} Qe3+ {[%emt 0:00:30]} 42. Kh2 {[%emt 0:00:30]} Qd3 {[%emt 0:00:30]} 43. gxh6+ {[%emt 0:00:30]} Qg6 {[%emt 0:00:30]} 44. Qh4 {[%emt 0:00:30]} Rb2 {[%emt 0:00:30]} 45. Bg5 {[%emt 0:00:30]} Kh7 {[%emt 0:00:30]} 46. f4 {[%emt 0:00:30]} Ne3 {[%emt 0:00:30]} 47. Qe1 {[%emt 0:00:30]} Rxg2+ {[%emt 0:00:30]} 48. Kh1 {[%emt 0:00:30]} Qe4 {[%emt 0:00:30]} 49. Qa5 {[%emt 0:00:30]} Rg3+ {[%emt 0:00:30]} 0-1

[Event "Catalan Youth Championship 2024"]
[Site "Cambrils"]
[Date "2024.03.25"]
[Round "5.10"]
[White "Molina Gil, Noah"]
[Black "Tello Alvarez, Erik"]
[Result "1-0"]
[ECO "B30"]
[WhiteElo "1932"]
[BlackElo "1624"]
[Annotator "RC"]
[PlyCount "85"]
[EventDate "2024.03.13"]
[EventType "swiss"]
[EventCountry "ESP"]
[SourceTitle "playchess.com"]
[Source "ChessBase"]
[SourceQuality "1"]
[TimeControl "5400+30"]

1. e4 {[%emt 0:00:05]} c5 {[%emt 0:00:15]} 2. Nf3 {[%emt 0:00:44]} Nc6 {[%emt 0:00:26]} 3. h3 {[%emt 0:00:31]} e6 {[%emt 0:00:39]} 4. Bd3 {[%emt 1:31:10]} Be7 {[%emt 0:02:03]} 5. c3 {[%emt 0:00:00]} d5 {[%emt 0:01:47]} 6. exd5 {[%emt 0:00:00]} exd5 {[%emt 0:00:15]} 7. Bc2 {[%emt 0:00:00]} Nf6 {[%emt 0:00:47]} 8. O-O {[%emt 0:00:00]} O-O {[%emt 0:00:26]} 9. d4 {[%emt 0:00:00]} cxd4 {[%emt 0:00:31]} 10. Nxd4 {[%emt 0:00:00]} Nxd4 {[%emt 0:06:35]} 11. Qxd4 {[%emt 0:00:00]} b6 {[%emt 0:00:51]} 12. Bg5 {[%emt 0:04:00]} h6 {[%emt 0:06:17]} 13. Bh4 {[%emt 0:00:00]} Bb7 {[%emt 0:03:02]} 14. Nd2 {[%emt 0:00:00]} Rc8 {[%emt 0:05:33]} 15. Nf3 {[%emt 0:00:00]} Qd6 {[%emt 0:11:10]} 16. Rfe1 {[%emt 0:00:00]} Qc5 {[%emt 0:07:56]} 17. Rad1 {[%emt 0:00:00]} Qxd4 {[%emt 0:03:39]} 18. Nxd4 {[%emt 0:00:00]} Rfe8 {[%emt 0:02:01]} 19. Ba4 {[%emt 0:00:00]} Ne4 {[%emt 0:11:30]} 20. Bxe7 {[%emt 0:00:00]} Rxe7 {[%emt 0:01:23]} 21. f3 {[%emt 0:00:00]} Nxc3 {[%emt 0:33:54]} 22. Rxe7 {[%emt 0:00:00]} Nxd1 {[%emt 0:00:00]} 23. Rxb7 {[%emt 0:00:00]} Nxb2 {[%emt 0:00:00]} 24. Bc6 {[%emt 0:00:00]} Rd8 {[%emt 0:00:00]} 25. Rxa7 {[%emt 0:00:00]} Nc4 {[%emt 0:02:00]} 26. Ra8 {[%emt 0:00:00]} Rxa8 {[%emt 0:00:00]} 27. Bxa8 {[%emt 0:00:00]} Ne3 {[%emt 0:00:00]} 28. g4 {[%emt 0:00:00]} Kf8 {[%emt 0:01:30]} 29. Nf5 {[%emt 0:00:00]} Nxf5 {[%emt 0:00:00]} 30. gxf5 {[%emt 0:00:00]} d4 {[%emt 0:00:00]} 31. Kf2 {[%emt 0:00:00]} Ke7 {[%emt 0:00:00]} 32. Be4 {[%emt 0:00:00]} Kd6 {[%emt 0:00:00]} 33. Ke2 {[%emt 0:00:00]} Kc5 {[%emt 0:00:00]} 34. Kd3 {[%emt 0:00:00]} b5 {[%emt 0:00:00]} 35. h4 {[%emt 0:11:30]} h5 {[%emt 0:03:30]} 36. Ba8 {[%emt 0:00:00]} f6 {[%emt 0:00:00]} 37. Be4 {[%emt 0:00:00]} Kb4 {[%emt 0:00:00]} 38. Kxd4 {[%emt 0:00:00]} Ka3 {[%emt 0:00:00]} 39. Bd5 {[%emt 0:00:00]} b4 {[%emt 0:00:00]} 40. Bb3 {[%emt 0:00:00]} Kb2 {[%emt 0:00:00]} 41. Kc4 {[%emt 0:00:00]} Ka3 {[%emt 0:00:00]} 42. Kb5 {[%emt 0:00:00]} Kb2 {[%emt 0:00:00]} 43. Kxb4 {[%emt 0:00:00]} 1-0

[Event "Catalan Youth Championship 2024"]
[Site "Cambrils"]
[Date "2024.03.25"]
[Round "5.11"]
[White "Garcia Canals, Gerard"]
[Black "Mallorqui Llop, Marc"]
[Result "0-1"]
[ECO "D36"]
[WhiteElo "1814"]
[BlackElo "1874"]
[Annotator "NA RC"]
[PlyCount "64"]
[EventDate "2024.03.13"]
[EventType "swiss"]
[EventCountry "ESP"]
[SourceTitle "playchess.com"]
[Source "ChessBase"]
[SourceQuality "1"]
[TimeControl "5400+30"]

1. d4 {[%emt 0:00:04]} d5 {[%emt 0:00:03]} 2. c4 {[%emt 0:00:07]} e6 {[%emt 0:00:05]} 3. Nc3 {[%emt 0:00:09]} Nf6 {[%emt 0:00:07]} 4. cxd5 {[%emt 0:00:23]} exd5 {[%emt 0:00:08]} 5. Bg5 {[%emt 0:00:25]} Be7 {[%emt 0:01:48]} 6. e3 {[%emt 0:01:27]} O-O {[%emt 0:00:55]} 7. Bd3 {[%emt 0:02:02]} c6 {[%emt 0:01:18]} 8. Qc2 {[%emt 0:01:48]} Nbd7 {[%emt 0:05:28]} 9. Nge2 {[%emt 1:28:35]} Re8 {[%emt 1:25:08]} 10. O-O {[%emt 0:00:00]} h6 {[%emt 0:00:00]} 11. Bh4 {[%emt 0:00:00]} Nb6 {[%emt 0:00:00]} 12. f3 {[%emt 0:01:30]} Nc4 {[%emt 0:01:30]} 13. Bf2 {[%emt 0:00:30]} c5 {[%emt 0:00:30]} 14. Nxd5 {[%emt 0:00:00]} Nxd5 {[%emt 0:00:00]} 15. Bxc4 {[%emt 0:00:00]} cxd4 {[%emt 0:01:00]} 16. exd4 {[%emt 0:01:30]} Be6 {[%emt 0:00:00]} 17. Qd1 {[%emt 0:00:00]} Ne3 {[%emt 0:00:00]} 18. Bxe3 {[%emt 0:00:00]} Bxc4 {[%emt 0:01:30]} 19. b3 {[%emt 0:00:00]} Ba6 {[%emt 0:00:00]} 20. Re1 {[%emt 0:00:00]} Bb4 {[%emt 0:01:00]} 21. Kf2 {[%emt 0:00:00]} Bxe1+ {[%emt 0:00:00]} 22. Qxe1 {[%emt 0:00:00]} Rc8 {[%emt 0:00:00]} 23. Rd1 {[%emt 0:00:00]} Qe7 {[%emt 0:00:00]} 24. Qd2 {[%emt 0:00:00]} Rc2 {[%emt 0:00:00]} 25. Qxc2 {[%emt 0:04:30]} Qxe3+ {[%emt 0:00:00]} 26. Kg3 {[%emt 0:00:30]} Qg5+ {[%emt 0:00:00]} 27. Kh3 {[%emt 0:00:00]} Rxe2 {[%emt 0:00:00]} 28. Qc8+ {[%emt 0:00:00]} Kh7 {[%emt 0:00:00]} 29. Rg1 {[%emt 0:00:00]} Bd3 {[%emt 0:00:00]} 30. g4 {[%emt 0:00:00]} Qf4 {[%emt 0:00:00]} 31. Rg3 {[%emt 0:00:00]} Rf2 {[%emt 0:00:00]} 32. Qxb7 {[%emt 0:00:00]} Bf1+ {[%emt 0:00:00]} 0-1

[Event "Catalan Youth Championship 2024"]
[Site "Cambrils"]
[Date "2024.03.25"]
[Round "5.12"]
[White "Villa Tornero, Alex"]
[Black "Marsal Calvet, Josep"]
[Result "1-0"]
[ECO "B10"]
[WhiteElo "2329"]
[BlackElo "1830"]
[Annotator "RC"]
[PlyCount "77"]
[EventDate "2024.03.13"]
[EventType "swiss"]
[EventCountry "ESP"]
[SourceTitle "playchess.com"]
[Source "ChessBase"]
[SourceQuality "1"]
[TimeControl "5400+30"]

1. e4 {[%emt 0:00:08]} c6 {[%emt 1:31:00]} 2. Nf3 {[%emt 0:00:22]} d5 {[%emt 0:00:00]} 3. exd5 {[%emt 0:00:06]} cxd5 {[%emt 0:00:00]} 4. Ne5 {[%emt 0:00:03]} Nc6 {[%emt 0:00:00]} 5. d4 {[%emt 1:32:21]} Nxe5 {[%emt 0:00:00]} 6. dxe5 {[%emt 0:00:00]} e6 {[%emt 0:00:00]} 7. Nd2 {[%emt 0:00:00]} Bd7 {[%emt 0:00:00]} 8. Nf3 {[%emt 0:00:00]} Bc5 {[%emt 0:00:00]} 9. Bd3 {[%emt 0:00:00]} Qc7 {[%emt 0:00:00]} 10. O-O {[%emt 0:00:00]} Ne7 {[%emt 0:00:00]} 11. c3 {[%emt 0:00:00]} Ng6 {[%emt 0:00:00]} 12. Qe2 {[%emt 0:03:30]} O-O {[%emt 0:05:30]} 13. h4 {[%emt 0:00:00]} h6 {[%emt 0:00:30]} 14. h5 {[%emt 0:00:00]} Ne7 {[%emt 0:00:00]} 15. Bf4 {[%emt 0:01:30]} f5 {[%emt 0:01:00]} 16. exf6 {[%emt 0:00:00]} Qxf4 {[%emt 0:00:00]} 17. fxe7 {[%emt 0:01:00]} Bxe7 {[%emt 0:01:00]} 18. Rae1 {[%emt 0:00:30]} Bd6 {[%emt 0:00:00]} 19. Ne5 {[%emt 0:00:30]} Qxe5 {[%emt 0:01:00]} 20. Qxe5 {[%emt 0:00:00]} Bxe5 {[%emt 0:00:00]} 21. Rxe5 {[%emt 0:01:00]} b5 {[%emt 0:00:00]} 22. f4 {[%emt 0:00:30]} a6 {[%emt 0:01:30]} 23. g3 {[%emt 0:00:00]} Rac8 {[%emt 0:00:00]} 24. a3 {[%emt 0:01:00]} Rcd8 {[%emt 0:00:00]} 25. Kf2 {[%emt 0:00:30]} Kf7 {[%emt 0:00:00]} 26. Ke3 {[%emt 0:00:00]} Ke7 {[%emt 0:00:00]} 27. Kd4 {[%emt 0:00:00]} Kd6 {[%emt 0:02:30]} 28. Rfe1 {[%emt 0:01:30]} Rc8 {[%emt 0:00:30]} 29. f5 {[%emt 0:00:30]} Rfe8 {[%emt 0:00:30]} 30. g4 {[%emt 0:00:00]} Rf8 {[%emt 0:00:30]} 31. Rxe6+ {[%emt 0:01:00]} Bxe6 {[%emt 0:00:00]} 32. Rxe6+ {[%emt 0:00:00]} Kd7 {[%emt 0:00:00]} 33. Rxa6 {[%emt 0:00:00]} Rc4+ {[%emt 0:01:30]} 34. Bxc4 {[%emt 0:00:00]} dxc4 {[%emt 0:00:00]} 35. Kd5 {[%emt 0:02:00]} Kc7 {[%emt 0:00:00]} 36. Ra7+ {[%emt 0:00:00]} Kb6 {[%emt 0:00:00]} 37. Rxg7 {[%emt 0:00:00]} Rd8+ {[%emt 0:00:00]} 38. Ke4 {[%emt 0:00:00]} Re8+ {[%emt 0:00:00]} 39. Kf3 {[%emt 0:00:00]} 1-0

[Event "Catalan Youth Championship 2024"]
[Site "Cambrils"]
[Date "2024.03.25"]
[Round "5.13"]
[White "Fernandez Climent, Albert"]
[Black "Salinas Tomas, Daniel"]
[Result "0-1"]
[ECO "B11"]
[WhiteElo "1978"]
[BlackElo "2386"]
[Annotator "RC"]
[PlyCount "130"]
[EventDate "2024.03.13"]
[EventType "swiss"]
[EventCountry "ESP"]
[SourceTitle "playchess.com"]
[Source "ChessBase"]
[SourceQuality "1"]
[TimeControl "5400+30"]

1. e4 {[%emt 0:00:30]} c6 {[%emt 0:00:05]} 2. Nf3 {[%emt 0:00:16]} d5 {[%emt 0:00:05]} 3. Nc3 {[%emt 0:00:06]} dxe4 {[%emt 0:00:29]} 4. Nxe4 {[%emt 0:02:22]} Nf6 {[%emt 0:00:06]} 5. Qe2 {[%emt 0:00:06]} Nxe4 {[%emt 0:00:03]} 6. Qxe4 {[%emt 0:00:05]} Nd7 {[%emt 0:00:48]} 7. Bc4 {[%emt 0:00:30]} Nf6 {[%emt 0:00:04]} 8. Ne5 {[%emt 0:00:08]} e6 {[%emt 0:00:04]} 9. Qe2 {[%emt 0:00:11]} b5 {[%emt 0:00:06]} 10. Bb3 {[%emt 0:01:08]} Qc7 {[%emt 0:00:21]} 11. a4 {[%emt 0:07:46]} Bd6 {[%emt 0:00:50]} 12. d4 {[%emt 0:02:01]} O-O {[%emt 0:04:01]} 13. Nd3 {[%emt 0:11:25]} a5 {[%emt 0:05:48]} 14. h3 {[%emt 0:06:06]} bxa4 {[%emt 0:05:23]} 15. Bc4 {[%emt 0:09:39]} Nd5 {[%emt 0:03:04]} 16. O-O {[%emt 0:14:20]} Nb6 {[%emt 0:02:25]} 17. Ba2 {[%emt 0:02:05]} Ba6 {[%emt 0:04:31]} 18. Re1 {[%emt 0:03:28]} c5 {[%emt 0:03:37]} 19. dxc5 {[%emt 0:06:18]} Bxc5 {[%emt 0:04:42]} 20. Qe4 {[%emt 0:00:22]} Bd6 {[%emt 0:05:41]} 21. Bb1 {[%emt 0:03:03]} Bb7 {[%emt 0:01:08]} 22. Qh4 {[%emt 0:02:40]} a3 {[%emt 0:10:32]} 23. bxa3 {[%emt 0:06:29]} Qc4 {[%emt 0:01:07]} 24. Qg5 {[%emt 0:09:00]} h6 {[%emt 0:00:44]} 25. Qh5 {[%emt 0:02:18]} Qd5 {[%emt 0:00:43]} 26. Qxd5 {[%emt 0:01:26]} Bxd5 {[%emt 0:00:24]} 27. Bf4 {[%emt 0:01:06]} Bxf4 {[%emt 0:01:00]} 28. Nxf4 {[%emt 0:00:06]} Rfc8 {[%emt 0:00:21]} 29. c4 {[%emt 0:01:11]} Rxc4 {[%emt 0:01:45]} 30. Nxd5 {[%emt 0:00:21]} Nxd5 {[%emt 0:02:41]} 31. Bd3 {[%emt 0:02:48]} Rc5 {[%emt 0:01:23]} 32. Reb1 {[%emt 0:01:20]} Rac8 {[%emt 0:00:31]} 33. Rb7 {[%emt 0:00:55]} g5 {[%emt 0:01:23]} 34. Bb5 {[%emt 0:01:32]} R5c7 {[%emt 0:01:50]} 35. Rxc7 {[%emt 0:00:36]} Rxc7 {[%emt 0:00:05]} 36. a4 {[%emt 0:01:16]} Kf8 {[%emt 0:00:14]} 37. Rd1 {[%emt 0:01:18]} Ke7 {[%emt 0:00:15]} 38. h4 {[%emt 0:00:56]} Nc3 {[%emt 0:00:26]} 39. Rd3 {[%emt 0:01:08]} Nxb5 {[%emt 0:00:33]} 40. axb5 {[%emt 0:00:04]} Rb7 {[%emt 0:00:10]} 41. Rb3 {[%emt 0:00:53]} Kd6 {[%emt 0:00:13]} 42. hxg5 {[%emt 0:00:20]} hxg5 {[%emt 0:00:07]} 43. Kh2 {[%emt 0:00:29]} Kc5 {[%emt 0:00:22]} 44. Rg3 {[%emt 0:01:04]} f6 {[%emt 0:01:14]} 45. Rf3 {[%emt 0:00:02]} f5 {[%emt 0:00:52]} 46. Re3 {[%emt 0:00:24]} Rb6 {[%emt 0:00:13]} 47. Re5+ {[%emt 0:00:03]} Kd6 {[%emt 0:00:54]} 48. Re1 {[%emt 0:00:42]} Rxb5 {[%emt 0:00:05]} 49. g4 {[%emt 0:00:13]} f4 {[%emt 0:00:14]} 50. Kg2 {[%emt 0:00:07]} a4 {[%emt 0:00:09]} 51. Kf3 {[%emt 0:00:18]} a3 {[%emt 0:00:12]} 52. Ra1 {[%emt 0:00:08]} Ra5 {[%emt 0:00:15]} 53. Ke4 {[%emt 0:00:07]} a2 {[%emt 0:00:19]} 54. f3 {[%emt 0:00:18]} Ra4+ {[%emt 0:00:11]} 55. Kd3 {[%emt 0:00:10]} Ra3+ {[%emt 0:00:12]} 56. Kd4 {[%emt 0:00:20]} Rxf3 {[%emt 0:01:03]} 57. Rxa2 {[%emt 0:00:06]} Ke7 {[%emt 0:00:11]} 58. Ra7+ {[%emt 0:01:15]} Kf6 {[%emt 0:00:06]} 59. Ra8 {[%emt 0:00:04]} e5+ {[%emt 0:01:00]} 60. Kd5 {[%emt 0:00:27]} Rd3+ {[%emt 0:00:05]} 61. Ke4 {[%emt 0:00:04]} Rd4+ {[%emt 0:00:05]} 62. Kf3 {[%emt 0:00:08]} e4+ {[%emt 0:00:05]} 63. Ke2 {[%emt 0:00:12]} e3 {[%emt 0:00:42]} 64. Rf8+ {[%emt 0:00:24]} Kg7 {[%emt 0:00:17]} 65. Re8 {[%emt 0:00:15]} Rd2+ {[%emt 0:00:21]} 0-1

[Event "Catalan Youth Championship 2024"]
[Site "Cambrils"]
[Date "2024.03.25"]
[Round "5.14"]
[White "Clotet Mas, Dan"]
[Black "Anguera Staina, Maxim"]
[Result "0-1"]
[ECO "B07"]
[WhiteElo "2028"]
[BlackElo "2020"]
[Annotator "RC"]
[PlyCount "60"]
[EventDate "2024.03.13"]
[EventType "swiss"]
[EventCountry "ESP"]
[SourceTitle "playchess.com"]
[Source "ChessBase"]
[SourceQuality "1"]
[TimeControl "5400+30"]

1. e4 {[%emt 0:00:02]} d6 {[%emt 0:00:20]} 2. d4 {[%emt 0:00:04]} Nf6 {[%emt 0:00:06]} 3. Nc3 {[%emt 0:00:48]} e5 {[%emt 0:00:05]} 4. dxe5 {[%emt 0:01:08]} dxe5 {[%emt 0:00:12]} 5. Qxd8+ {[%emt 0:00:05]} Kxd8 {[%emt 0:00:02]} 6. f3 {[%emt 0:05:13]} Be6 {[%emt 0:00:59]} 7. Be3 {[%emt 0:01:04]} c6 {[%emt 0:00:11]} 8. Nge2 {[%emt 0:01:37]} Kc7 {[%emt 1:32:35]} 9. Nc1 {[%emt 0:03:31]} Nfd7 {[%emt 0:00:00]} 10. Nd3 {[%emt 1:21:58]} Na6 {[%emt 0:01:00]} 11. Kf2 {[%emt 0:00:00]} Nb4 {[%emt 0:00:00]} 12. Nxb4 {[%emt 0:00:00]} Bxb4 {[%emt 0:01:00]} 13. Nb1 {[%emt 0:00:00]} Rhd8 {[%emt 0:00:30]} 14. a4 {[%emt 0:00:00]} a5 {[%emt 0:00:30]} 15. Be2 {[%emt 0:02:30]} f5 {[%emt 0:00:30]} 16. exf5 {[%emt 0:00:00]} Bxf5 {[%emt 0:00:30]} 17. c3 {[%emt 0:00:00]} Bc5 {[%emt 0:00:00]} 18. Na3 {[%emt 0:01:30]} Bxe3+ {[%emt 0:00:00]} 19. Kxe3 {[%emt 0:00:30]} Nf6 {[%emt 0:01:30]} 20. Bc4 {[%emt 0:00:30]} e4 {[%emt 0:00:30]} 21. f4 {[%emt 0:00:30]} Ng4+ {[%emt 0:00:00]} 22. Ke2 {[%emt 0:00:30]} e3 {[%emt 0:01:00]} 23. Nb1 {[%emt 0:00:30]} Re8 {[%emt 0:00:30]} 24. h3 {[%emt 0:00:30]} Nf2 {[%emt 0:00:00]} 25. Re1 {[%emt 0:00:00]} Rad8 {[%emt 0:01:00]} 26. Kf3 {[%emt 0:00:00]} Be4+ {[%emt 0:00:30]} 27. Kg3 {[%emt 0:00:02]} Bxb1 {[%emt 0:00:00]} 28. Raxb1 {[%emt 0:00:19]} Ne4+ {[%emt 0:01:00]} 29. Kh2 {[%emt 0:01:21]} Nd2 {[%emt 0:00:00]} 30. Bf7 {[%emt 0:00:25]} Re7 {[%emt 0:00:00]} 0-1

[Event "Catalan Youth Championship 2024"]
[Site "Cambrils"]
[Date "2024.03.25"]
[Round "5.15"]
[White "Sviridenko, Yaroslav"]
[Black "Escudero Ribo, Eloi"]
[Result "1-0"]
[ECO "B13"]
[WhiteElo "1961"]
[BlackElo "1982"]
[Annotator "NA RC"]
[PlyCount "65"]
[EventDate "2024.03.13"]
[EventType "swiss"]
[EventCountry "ESP"]
[SourceTitle "playchess.com"]
[Source "ChessBase"]
[SourceQuality "1"]
[TimeControl "5400+30"]

1. e4 {[%emt 0:00:07]} c6 {[%emt 0:00:09]} 2. d4 {[%emt 0:00:24]} d5 {[%emt 0:00:09]} 3. exd5 {[%emt 0:00:08]} cxd5 {[%emt 0:00:10]} 4. Bd3 {[%emt 0:00:05]} Nc6 {[%emt 0:00:14]} 5. c3 {[%emt 0:00:08]} Nf6 {[%emt 0:00:09]} 6. h3 {[%emt 0:00:05]} g6 {[%emt 0:03:11]} 7. Nf3 {[%emt 0:00:53]} Bg7 {[%emt 0:00:17]} 8. O-O {[%emt 0:00:17]} O-O {[%emt 0:00:12]} 9. Be3 {[%emt 0:01:08]} Ne8 {[%emt 0:02:18]} 10. Nbd2 {[%emt 0:01:47]} Nd6 {[%emt 0:00:35]} 11. Re1 {[%emt 0:01:32]} Bf5 {[%emt 0:03:28]} 12. Bf1 {[%emt 0:00:13]} Qb6 {[%emt 0:14:50]} 13. b3 {[%emt 0:06:35]} Qc7 {[%emt 0:06:16]} 14. Bf4 {[%emt 0:02:52]} Qd8 {[%emt 0:07:01]} 15. b4 {[%emt 0:06:45]} Ne4 {[%emt 0:04:53]} 16. Nxe4 {[%emt 0:02:25]} Bxe4 {[%emt 0:01:16]} 17. Nd2 {[%emt 0:01:43]} Bf5 {[%emt 0:00:22]} 18. Nb3 {[%emt 0:06:07]} a5 {[%emt 0:10:57]} 19. b5 {[%emt 0:02:18]} Na7 {[%emt 0:01:02]} 20. g4 {[%emt 0:10:29]} Bd7 {[%emt 0:02:04]} 21. a4 {[%emt 0:00:22]} b6 {[%emt 0:02:19]} 22. Bg2 {[%emt 0:01:57]} Be6 {[%emt 0:01:53]} 23. Rc1 {[%emt 0:08:42]} Rc8 {[%emt 0:03:58]} 24. Nd2 {[%emt 0:00:42]} Qd7 {[%emt 0:14:34]} 25. Nf1 {[%emt 0:05:23]} Rcd8 {[%emt 0:00:56]} 26. Ne3 {[%emt 0:02:13]} Nc8 {[%emt 0:00:22]} 27. c4 {[%emt 0:01:01]} f5 {[%emt 0:01:50]} 28. cxd5 {[%emt 0:06:39]} fxg4 {[%emt 0:03:56]} 29. dxe6 {[%emt 0:00:33]} Qxe6 {[%emt 0:01:15]} 30. Nd5 {[%emt 0:06:12]} Qf7 {[%emt 0:01:45]} 31. Qxg4 {[%emt 0:01:59]} Rxd5 {[%emt 0:04:26]} 32. Bxd5 {[%emt 0:01:03]} Qxd5 {[%emt 0:00:08]} 33. Rxc8 {[%emt 0:00:18]} 1-0

[Event "Catalan Youth Championship 2024"]
[Site "Cambrils"]
[Date "2024.03.25"]
[Round "5.16"]
[White "Montes Molina, Ivan"]
[Black "Nepali Dolkar, Sherab Odsel"]
[Result "1-0"]
[ECO "B12"]
[WhiteElo "2100"]
[BlackElo "1853"]
[Annotator "RC"]
[PlyCount "97"]
[EventDate "2024.03.13"]
[EventType "swiss"]
[EventCountry "ESP"]
[SourceTitle "playchess.com"]
[Source "ChessBase"]
[SourceQuality "1"]
[TimeControl "5400+30"]

1. e4 {[%emt 0:00:03]} c6 {[%emt 0:00:29]} 2. d4 {[%emt 0:00:07]} d5 {[%emt 0:00:06]} 3. e5 {[%emt 0:00:05]} Bf5 {[%emt 0:00:06]} 4. Nf3 {[%emt 0:00:09]} e6 {[%emt 0:00:08]} 5. Be2 {[%emt 0:00:05]} c5 {[%emt 0:02:54]} 6. O-O {[%emt 0:04:40]} Nc6 {[%emt 0:01:04]} 7. Be3 {[%emt 0:00:35]} Qb6 {[%emt 1:29:13]} 8. Nc3 {[%emt 0:02:18]} Qxb2 {[%emt 0:00:00]} 9. Qe1 {[%emt 0:00:39]} Qb6 {[%emt 0:00:00]} 10. dxc5 {[%emt 0:04:50]} Qa5 {[%emt 0:00:00]} 11. Nb5 {[%emt 0:06:39]} Qxe1 {[%emt 0:00:00]} 12. Rfxe1 {[%emt 0:00:23]} O-O-O {[%emt 0:00:00]} 13. Nbd4 {[%emt 0:10:20]} Nge7 {[%emt 0:00:00]} 14. Bb5 {[%emt 0:04:12]} h6 {[%emt 0:00:00]} 15. a4 {[%emt 0:10:06]} Kc7 {[%emt 0:00:00]} 16. a5 {[%emt 0:05:53]} a6 {[%emt 0:00:00]} 17. Nxc6 {[%emt 0:01:07]} Nxc6 {[%emt 0:00:00]} 18. Bxc6 {[%emt 0:00:53]} bxc6 {[%emt 0:00:00]} 19. Nd4 {[%emt 0:01:27]} Bh7 {[%emt 0:00:00]} 20. Rab1 {[%emt 0:00:16]} Bxc5 {[%emt 0:00:00]} 21. Nxe6+ {[%emt 0:01:30]} fxe6 {[%emt 0:00:00]} 22. Bxc5 {[%emt 0:00:04]} Bxc2 {[%emt 0:00:00]} 23. Rb4 {[%emt 0:02:50]} Bd3 {[%emt 0:00:00]} 24. Bb6+ {[%emt 0:02:44]} Kc8 {[%emt 0:00:00]} 25. Bxd8 {[%emt 0:05:47]} Rxd8 {[%emt 0:00:00]} 26. Rf4 {[%emt 0:00:09]} c5 {[%emt 0:00:00]} 27. Rf7 {[%emt 0:00:51]} Rd7 {[%emt 0:00:00]} 28. Rf8+ {[%emt 0:01:03]} Rd8 {[%emt 0:00:00]} 29. Rxd8+ {[%emt 0:00:36]} Kxd8 {[%emt 0:00:00]} 30. f4 {[%emt 0:35:09]} Kc7 {[%emt 0:00:00]} 31. g4 {[%emt 0:00:00]} g6 {[%emt 0:00:00]} 32. Kf2 {[%emt 0:00:00]} Kc6 {[%emt 0:00:00]} 33. Ke3 {[%emt 0:00:00]} Be4 {[%emt 0:00:00]} 34. Re2 {[%emt 0:00:00]} Kb5 {[%emt 0:00:34]} 35. Rb2+ {[%emt 0:00:00]} Kxa5 {[%emt 0:00:21]} 36. Rb8 {[%emt 0:00:00]} Bc2 {[%emt 0:00:58]} 37. Kd2 {[%emt 0:00:00]} Be4 {[%emt 0:02:02]} 38. Re8 {[%emt 0:00:00]} d4 {[%emt 0:00:51]} 39. Rxe6 {[%emt 0:00:00]} c4 {[%emt 0:00:44]} 40. Rd6 {[%emt 0:00:00]} c3+ {[%emt 0:00:44]} 41. Kc1 {[%emt 0:00:00]} d3 {[%emt 0:00:17]} 42. e6 {[%emt 0:00:00]} Kb5 {[%emt 0:05:52]} 43. e7 {[%emt 0:00:00]} d2+ {[%emt 0:00:34]} 44. Kd1 {[%emt 0:00:00]} Bf3+ {[%emt 0:00:58]} 45. Kc2 {[%emt 0:00:00]} Kc5 {[%emt 0:00:32]} 46. Rd8 {[%emt 0:08:00]} Bc6 {[%emt 0:03:29]} 47. Kxc3 {[%emt 0:00:00]} a5 {[%emt 0:00:28]} 48. Kxd2 {[%emt 0:00:00]} a4 {[%emt 0:00:19]} 49. Rc8 {[%emt 0:01:30]} 1-0